bitfinex/quotes_SOLUSD_20240623
["timestamp","ask_amount","ask_price","bid_price","bid_amount"]
[1719161601393,20.0,131.19,131.18,100.0]
[1719161602323,27.6225,131.19,131.18,100.0]
[1719161604321,39.0563,131.19,131.16,100.0]
[1719161604618,7.6236,131.17,131.16,100.0]
[1719161605244,7.6233,131.18,131.16,200.0]
[1719161605521,27.6236,131.17,131.16,100.0]
[1719161606499,20.0,131.17,131.14,206.3581]
[1719161606702,7.6248,131.15,131.14,100.0]
[1719161606903,27.6248,131.15,131.14,100.0]
[1719161607423,20.0,131.15,131.12,200.0]
[1719161607602,19.0581,131.18,131.12,200.0]
[1719161607932,7.6251,131.15,131.12,200.0]
[1719161608136,38.1135,131.19,131.1,100.0]
[1719161608310,7.6269,131.12,131.1,100.0]
[1719161608606,20.0,131.18,131.1,100.0]
[1719161608607,7.6271,131.11,131.1,100.0]
[1719161608814,20.0,131.11,131.1,100.0]
[1719161609302,27.6273,131.11,131.08,145.76]
[1719161609508,7.627,131.18,131.09,200.0]
[1719161609509,7.6269,131.12,131.09,200.0]
[1719161609724,20.0,131.11,131.09,200.0]
[1719161610525,20.0,131.11,131.07,100.0]
[1719161610822,7.6287,131.09,131.06,45.76]
[1719161611204,20.0,131.08,131.06,45.76]
[1719161611533,27.6289,131.08,131.06,45.76]
[1719161612219,20.0,131.08,131.06,45.76]
[1719161612418,20.0,131.08,131.07,100.0]
[1719161613323,7.6298,131.07,131.05,200.0]
[1719161613498,7.6298,131.07,131.03,52.1181]
[1719161613499,7.6298,131.07,131.03,252.1181]
[1719161613699,27.6301,131.06,131.03,252.1181]
[1719161613903,27.6303,131.06,131.03,252.1181]
[1719161614306,7.6312,131.04,131.01,216.0126]
[1719161614510,7.6308,131.05,131.01,200.0]
[1719161614709,7.6313,131.04,131.01,200.0]
[1719161614925,27.6319,131.03,131.01,200.0]
[1719161615130,20.0,131.03,131.01,200.0]
[1719161615325,19.0741,131.07,131.01,200.0]
[1719161615518,7.6315,131.04,131.01,200.0]
[1719161615903,27.6319,131.03,131.01,200.0]
[1719161616113,20.0,131.03,130.99,252.289]
[1719161616614,7.6326,131.02,130.99,252.289]
[1719161616918,20.0,131.01,130.99,252.289]
[1719161617126,20.0,131.01,130.99,245.76]
[1719161617329,27.6332,131.01,130.99,145.76]
[1719161617528,7.6335,131.0,130.99,100.0]
[1719161617716,7.6335,131.0,130.97,245.76]
[1719161617911,7.6342,130.99,130.95,200.0]
[1719161618219,7.6353,130.97,130.95,100.0]
[1719161618411,39.0828,131.01,130.95,100.0]
[1719161618612,7.6347,130.98,130.95,100.0]
[1719161618820,16.8959,131.01,130.92,100.0]
[1719161619024,16.8959,131.01,130.94,100.0]
[1719161619025,20.0,130.97,130.94,100.0]
[1719161619212,19.0855,130.99,130.92,100.0]
[1719161619403,7.627,131.0,130.9,100.8452737]
[1719161619404,20.0,130.98,130.9,100.8452737]
[1719161619608,20.0,130.98,130.9,200.8452737]
[1719161619609,7.6381,130.93,130.9,200.8452737]
[1719161619835,20.0,130.92,130.9,200.8452737]
[1719161620018,20.0,130.92,130.9,200.3452737]
[1719161620340,7.6388,130.91,130.9,200.3452737]
[1719161620512,7.6388,130.91,130.9,0.3452737]
[1719161620712,27.6388,130.91,130.9,0.3452737]
[1719161622141,20.0,130.91,130.9,0.3452737]
[1719161622435,20.0,130.91,130.9,100.3452737]
[1719161622734,7.6376,130.93,130.92,200.0]
[1719161622934,27.6376,130.93,130.92,200.0]
[1719161623132,20.0,130.93,130.92,200.0]
[1719161623427,7.6353,130.97,130.96,200.0]
[1719161623735,7.6349,130.98,130.96,200.0]
[1719161623904,20.0,130.97,130.96,200.0]
[1719161624105,7.6351,130.98,130.96,200.0]
[1719161624310,7.6349,130.98,130.96,200.0]
[1719161624707,7.6353,130.97,130.96,100.0]
[1719161625311,27.6353,130.97,130.96,100.0]
[1719161625528,20.0,130.97,130.92,100.17]
[1719161625728,7.6353,130.98,130.94,100.0]
[1719161625938,7.6359,130.96,130.94,100.0]
[1719161626315,20.0,130.95,130.92,100.0]
[1719161626516,19.0886,130.97,130.92,100.0]
[1719161626517,7.6376,130.93,130.92,100.0]
[1719161626710,19.0917,130.95,130.92,100.0]
[1719161626930,7.6376,130.93,130.92,100.0]
[1719161627240,7.6376,130.93,130.92,200.0]
[1719161627414,27.6376,130.93,130.92,100.0]
[1719161627614,20.0,130.93,130.92,100.0]
[1719161627815,7.6367,130.95,130.94,100.0]
[1719161628013,27.6367,130.95,130.94,100.0]
[1719161629040,27.6367,130.95,130.9,100.3452737]
[1719161629041,7.6388,130.91,130.9,100.3452737]
[1719161629831,20.0,130.91,130.9,100.3452737]
[1719161630346,7.637,130.94,130.93,100.0]
[1719161630732,7.637,130.94,130.92,45.76]
[1719161630733,7.6376,130.93,130.92,45.76]
[1719161631034,20.0,130.93,130.92,45.76]
[1719161631253,7.6367,130.95,130.94,100.0]
[1719161631547,27.6367,130.95,130.94,100.0]
[1719161632760,20.0,130.95,130.94,100.0]
[1719161633059,27.6365,130.95,130.94,100.0]
[1719161633282,20.0,130.95,130.94,145.76]
[1719161633763,7.6362,130.96,130.95,145.76]
[1719161634063,7.6351,130.98,130.96,145.76]
[1719161634430,38.5568,131.05,130.96,145.76]
[1719161634630,44.79291017,131.05,130.96,45.76]
[1719161634924,44.79291017,131.05,130.94,200.0]
[1719161634925,7.6359,130.96,130.94,100.0]
[1719161635560,7.6355,130.97,130.96,100.0]
[1719161635734,7.6352,130.98,130.96,245.76]
[1719161635945,27.6353,130.97,130.96,245.76]
[1719161636254,20.0,130.97,130.96,145.76]
[1719161636744,27.6353,130.97,130.96,145.76]
[1719161636955,20.0,130.97,130.96,145.76]
[1719161637126,27.6353,130.97,130.96,45.76]
[1719161637326,7.6359,130.96,130.95,45.76]
[1719161638433,7.6365,130.95,130.94,100.0]
[1719161638751,7.6361,130.96,130.94,145.76]
[1719161638931,7.6361,130.96,130.95,100.0]
[1719161639548,27.6361,130.96,130.95,100.0]
[1719161640039,7.6365,130.95,130.94,145.76]
[1719161640454,27.6365,130.95,130.94,145.76]
[1719161640635,20.0,130.95,130.94,145.76]
[1719161641653,27.6365,130.95,130.94,145.76]
[1719161642349,20.0,130.95,130.91,145.76]
[1719161642531,38.1631,131.02,130.91,145.76]
[1719161642532,7.6382,130.92,130.91,145.76]
[1719161643056,27.6382,130.92,130.91,145.76]
[1719161643228,20.0,130.92,130.9,46.1052737]
[1719161643556,20.0,130.92,130.91,145.76]
[1719161644825,7.6371,130.94,130.93,245.76]
[1719161645134,20.0,130.94,130.93,245.76]
[1719161645334,7.6361,130.96,130.93,245.76]
[1719161645548,27.6366,130.95,130.93,245.76]
[1719161645746,20.0,130.95,130.93,245.76]
[1719161645928,7.6343,130.99,130.98,100.0]
[1719161646133,7.6347,130.98,130.97,45.76]
[1719161646346,7.6353,130.97,130.96,100.0]
[1719161646549,7.6365,130.95,130.94,245.76]
[1719161646734,7.6365,130.95,130.94,145.76]
[1719161646933,7.637,130.94,130.93,45.76]
[1719161647133,7.637,130.94,130.92,100.0]
[1719161647349,19.0891,130.97,130.92,100.0]
[1719161647350,7.6376,130.93,130.92,100.0]
[1719161647741,7.6376,130.93,130.91,45.76]
[1719161648128,7.6376,130.93,130.91,43.70371211]
[1719161648329,7.6382,130.92,130.9,100.3452737]
[1719161648733,19.091,130.96,130.9,200.3452737]
[1719161648962,20.0,130.95,130.9,200.3452737]
[1719161649138,7.6377,130.93,130.9,200.3452737]
[1719161649649,20.0,130.92,130.91,45.76]
[1719161650039,27.6382,130.92,130.91,45.76]
[1719161650243,7.6388,130.91,130.9,100.3452737]
[1719161650443,20.0,130.91,130.9,100.3452737]
[1719161650652,27.6388,130.91,130.9,100.3452737]
[1719161650850,20.0,130.91,130.9,100.3452737]
[1719161651153,27.6388,130.91,130.9,100.3452737]
[1719161651456,27.6388,130.91,130.9,0.3452737]
[1719161652753,27.6388,130.91,130.9,100.3452737]
[1719161652956,20.0,130.91,130.9,146.1052737]
[1719161653140,7.6378,130.93,130.92,100.0]
[1719161653349,20.0,130.93,130.92,245.76]
[1719161653543,27.6376,130.93,130.92,145.76]
[1719161653742,20.0,130.93,130.92,245.76]
[1719161654160,27.6376,130.93,130.92,245.76]
[1719161654544,20.0,130.93,130.92,245.76]
[1719161654738,7.6362,130.96,130.94,245.76]
[1719161654945,293.1651,131.01,130.94,245.76]
[1719161654946,20.0,130.95,130.94,245.76]
[1719161655558,27.6365,130.95,130.94,145.76]
[1719161656363,7.6388,130.91,130.9,200.3452737]
[1719161656657,7.6388,130.91,130.9,100.3452737]
[1719161656870,27.6388,130.91,130.9,100.3452737]
[1719161658554,27.6388,130.91,130.9,0.3452737]
[1719161660245,20.0,130.91,130.9,46.1052737]
[1719161660548,7.6376,130.94,130.91,200.0]
[1719161660768,20.0,130.93,130.91,200.0]
[1719161660946,7.6376,130.94,130.91,200.0]
[1719161661147,57.2632,130.98,130.91,245.76]
[1719161661148,7.6377,130.93,130.91,245.76]
[1719161661364,7.6373,130.94,130.91,245.76]
[1719161661564,19.0883,130.98,130.9,0.5152737]
[1719161661565,7.6363,130.96,130.95,100.0]
[1719161661868,0.4011,131.02,130.95,145.93]
[1719161662175,0.4011,131.02,130.95,145.76]
[1719161662367,7.6356,130.97,130.96,145.76]
[1719161662539,7.6343,130.99,130.98,100.0]
[1719161662747,7.6343,130.99,130.98,145.76]
[1719161663073,7.6337,131.0,130.99,100.0]
[1719161663587,7.6337,131.0,130.95,6.4517]
[1719161663588,7.6327,131.02,131.01,100.0]
[1719161664090,7.633,131.01,131.0,145.76]
[1719161664566,7.6335,131.0,130.99,45.76]
[1719161664970,7.6332,131.01,131.0,145.76]
[1719161665287,27.6332,131.01,131.0,145.76]
[1719161665461,20.0,131.01,131.0,145.76]
[1719161665664,19.5,131.01,131.0,146.1]
[1719161666956,7.6314,131.04,131.03,100.0]
[1719161667481,7.6321,131.03,131.01,100.0]
[1719161667669,7.6321,131.03,131.0,146.1]
[1719161667670,7.633,131.01,131.0,45.76]
[1719161668379,27.633,131.01,131.0,45.76]
[1719161670263,27.633,131.01,131.0,145.76]
[1719161670459,20.0,131.01,131.0,145.76]
[1719161670861,7.632,131.03,131.02,100.0]
[1719161671062,27.632,131.03,131.02,100.0]
[1719161671271,27.632,131.03,131.02,245.76]
[1719161671468,20.0,131.03,131.02,245.76]
[1719161672266,7.6307,131.05,131.04,200.0]
[1719161672477,27.6307,131.05,131.04,200.0]
[1719161675863,27.6307,131.05,131.04,245.76]
[1719161676771,20.0,131.05,131.04,245.76]
[1719161676991,7.6297,131.07,131.06,200.0]
[1719161677172,27.6297,131.07,131.06,100.0]
[1719161677490,7.6306,131.05,131.04,145.76]
[1719161679071,7.6301,131.06,131.04,145.93]
[1719161679271,7.6306,131.05,131.04,145.76]
[1719161679891,7.6306,131.05,131.03,45.76]
[1719161680087,7.6312,131.04,131.03,45.76]
[1719161680278,7.6318,131.03,131.02,100.0]
[1719161680791,7.6318,131.03,131.02,200.0]
[1719161681003,20.0,131.04,131.02,245.76]
[1719161681377,7.6318,131.03,131.02,245.76]
[1719161681795,20.0,131.04,131.02,245.76]
[1719161681986,38.1378,131.11,131.02,245.76]
[1719161682288,7.6311,131.05,131.04,200.0]
[1719161682492,7.6303,131.06,131.04,245.76]
[1719161682697,20.0,131.05,131.04,245.76]
[1719161683994,20.0,131.05,131.04,245.93]
[1719161684480,7.6296,131.07,131.06,200.0]
[1719161684688,27.6296,131.07,131.06,200.0]
[1719161685198,20.0,131.07,131.03,100.0]
[1719161685402,20.0,131.06,131.03,100.0]
[1719161685581,7.6312,131.04,131.03,100.0]
[1719161685787,27.6312,131.04,131.03,100.0]
[1719161686176,7.6318,131.03,131.02,145.76]
[1719161686480,7.6318,131.03,131.02,45.76]
[1719161686800,7.6318,131.03,131.02,145.76]
[1719161686999,7.6318,131.03,131.02,100.0]
[1719161687179,7.6324,131.02,131.01,100.0]
[1719161687504,7.6321,131.03,131.02,100.0]
[1719161687699,20.0,131.04,131.02,145.76]
[1719161687888,7.6318,131.03,131.02,145.76]
[1719161688392,7.6324,131.02,131.01,100.0]
[1719161688976,7.633,131.01,131.0,100.0]
[1719161689581,7.633,131.01,131.0,145.76]
[1719161690502,7.6326,131.02,131.0,245.76]
[1719161691304,7.633,131.01,131.0,100.0]
[1719161691491,7.6336,131.0,130.98,145.76]
[1719161691683,20.0,131.03,130.95,100.0]
[1719161691684,15.2084,131.01,130.95,100.0]
[1719161691898,20.0,131.0,130.95,100.0]
[1719161692206,7.6351,130.98,130.96,100.0]
[1719161692503,27.6354,130.97,130.95,145.76]
[1719161692802,20.0,130.97,130.96,100.0]
[1719161694302,27.6353,130.97,130.95,145.76]
[1719161694619,7.6359,130.96,130.95,145.76]
[1719161695507,7.6365,130.95,130.94,45.76]
[1719161695831,27.6356,130.97,130.94,45.76]
[1719161695979,27.6356,130.97,130.95,145.76]
[1719161696395,20.0,130.97,130.96,145.76]
[1719161698184,27.6353,130.97,130.96,145.76]
[1719161700502,20.0,130.97,130.96,145.76]
[1719161700704,7.6349,130.98,130.97,145.76]
[1719161700891,27.6349,130.98,130.97,145.76]
[1719161701486,7.6353,130.97,130.96,100.0]
[1719161701900,7.6353,130.97,130.96,145.93]
[1719161703411,19.0869,130.98,130.94,45.93]
[1719161703588,7.6365,130.95,130.94,45.93]
[1719161704705,7.637,130.94,130.92,100.0]
[1719161704910,7.637,130.94,130.91,0.5114]
[1719161704911,7.6382,130.92,130.91,0.5114]
[1719161705510,27.6382,130.92,130.91,0.5114]
[1719161709626,46.7338,130.92,130.91,0.5114]
[1719161710289,20.0,130.92,130.91,0.5114]
[1719161710598,20.0,130.92,130.91,146.4414]
[1719161710796,16.5852,130.97,130.92,100.0]
[1719161711009,7.6376,130.93,130.92,100.0]
[1719161712120,22.8166487,130.97,130.93,100.0]
[1719161712121,7.6372,130.94,130.93,100.0]
[1719161712295,27.6372,130.94,130.93,100.0]
[1719161713702,7.6376,130.93,130.92,145.93]
[1719161713902,27.6376,130.93,130.92,145.93]
[1719161714309,20.0,130.93,130.92,245.93]
[1719161714906,7.6376,130.93,130.92,246.1]
[1719161715230,19.0898,130.96,130.92,245.93]
[1719161715524,7.6373,130.94,130.92,245.93]
[1719161717235,27.6366,130.95,130.94,100.0]
[1719161717528,7.6382,130.92,130.91,0.5114]
[1719161717897,46.7338,130.92,130.91,0.5114]
[1719161724004,7.6394,130.9,130.89,0.08375]
[1719161724416,27.6394,130.9,130.89,0.08375]
[1719161724800,46.7379,130.9,130.89,0.08375]
[1719161725729,27.6394,130.9,130.89,0.08375]
[1719161728804,19.0925,130.95,130.91,100.0]
[1719161729020,7.6385,130.92,130.9,145.93]
[1719161729223,7.6394,130.9,130.89,100.08375]
[1719161729421,7.6394,130.9,130.89,146.01375]
[1719161730231,7.6389,130.91,130.89,146.01375]
[1719161730909,7.6394,130.9,130.89,146.01375]
[1719161731108,7.6394,130.9,130.89,100.08375]
[1719161731434,46.7379,130.9,130.89,0.08375]
[1719161731610,39.0985,130.9,130.86,12.74401539]
[1719161731946,7.6411,130.87,130.86,12.74401539]
[1719161732444,27.6411,130.87,130.86,12.74401539]
[1719161733316,27.6411,130.87,130.86,6.59090627]
[1719161733513,27.6411,130.87,130.86,4.29425007]
[1719161733712,27.6411,130.87,130.86,1.88825007]
[1719161733921,20.0,130.87,130.83,100.0]
[1719161734108,7.6429,130.84,130.83,100.0]
[1719161734303,27.6429,130.84,130.83,100.0]
[1719161734509,46.7502,130.84,130.83,100.0]
[1719161734810,27.6429,130.84,130.83,100.0]
[1719161735211,7.6435,130.83,130.82,5.0]
[1719161735430,27.6435,130.83,130.82,5.0]
[1719161736332,7.6458,130.79,130.78,100.0]
[1719161736832,27.6458,130.79,130.78,100.0]
[1719161737243,7.644,130.83,130.82,100.0]
[1719161737420,7.6443,130.82,130.8,200.0]
[1719161737637,7.6446,130.81,130.8,200.0]
[1719161737924,20.0,130.83,130.77,0.8452737]
[1719161737925,7.6458,130.79,130.78,200.0]
[1719161738538,27.6458,130.79,130.78,200.0]
[1719161738733,7.6444,130.82,130.8,200.0]
[1719161738935,27.6446,130.81,130.8,200.0]
[1719161739154,20.0,130.81,130.8,200.0]
[1719161739360,20.0,130.81,130.8,200.17]
[1719161739657,27.6446,130.81,130.8,200.0]
[1719161739866,27.6446,130.81,130.8,100.0]
[1719161740230,7.6458,130.79,130.78,100.0]
[1719161740439,20.0,130.79,130.78,100.0]
[1719161740652,27.6458,130.79,130.78,100.0]
[1719161741442,19.1072,130.85,130.78,100.0]
[1719161741653,19.1072,130.85,130.8,200.0]
[1719161741986,7.6421,130.86,130.85,100.0]
[1719161742160,15.0904,130.92,130.85,100.0]
[1719161742161,7.641,130.88,130.87,100.0]
[1719161742337,7.6417,130.86,130.85,100.17]
[1719161742676,7.6413,130.87,130.85,100.17]
[1719161742841,7.6413,130.87,130.86,100.0]
[1719161743154,7.6429,130.84,130.82,106.5656]
[1719161743361,19.1034,130.87,130.82,100.0]
[1719161743362,7.6435,130.83,130.82,100.0]
[1719161743936,7.6427,130.85,130.82,100.0]
[1719161744151,7.6427,130.85,130.84,100.0]
[1719161744377,7.6435,130.83,130.82,100.0]
[1719161744959,20.0,130.85,130.8,100.0]
[1719161745140,19.1085,130.84,130.79,100.0]
[1719161745345,7.6452,130.8,130.79,100.0]
[1719161746465,7.6458,130.79,130.78,100.0]
[1719161746651,7.6458,130.79,130.78,200.0]
[1719161746966,27.6458,130.79,130.78,200.0]
[1719161747366,27.6458,130.79,130.78,100.0]
[1719161747660,7.6464,130.78,130.77,0.8452737]
[1719161747864,27.6464,130.78,130.77,0.8452737]
[1719161751368,27.6464,130.78,130.77,7.37e-05]
[1719161751542,7.649,130.74,130.71,100.0]
[1719161751866,20.0,130.73,130.71,100.0]
[1719161752072,7.6499,130.72,130.71,100.0]
[1719161752276,7.6511,130.7,130.69,100.0]
[1719161752648,19.1254,130.72,130.65,101.99040746]
[1719161752649,15.4915,130.72,130.65,101.99040746]
[1719161752978,7.6534,130.66,130.65,101.99040746]
[1719161753274,15.4915,130.72,130.6,100.0]
[1719161753447,20.0,130.71,130.6,100.0]
[1719161753652,19.1371,130.64,130.59,13.08243089]
[1719161753965,7.6562,130.62,130.59,13.08243089]
[1719161754154,7.6557,130.62,130.61,100.0]
[1719161754355,7.6559,130.62,130.59,113.08243089]
[1719161754568,20.0,130.63,130.61,100.0]
[1719161754753,7.6536,130.66,130.64,100.0]
[1719161754954,20.0,130.65,130.64,100.0]
[1719161755355,7.6549,130.64,130.62,100.0]
[1719161755673,19.1275,130.71,130.66,100.0]
[1719161755850,0.4011,130.75,130.66,100.0]
[1719161755851,27.6515,130.7,130.66,100.0]
[1719161756051,27.6513,130.7,130.68,100.0]
[1719161756377,20.0,130.7,130.68,100.0]
[1719161756553,7.6493,130.73,130.71,100.0]
[1719161757462,7.6485,130.75,130.73,100.0]
[1719161757971,7.6477,130.76,130.73,100.0]
[1719161758275,20.0,130.75,130.73,100.0]
[1719161758651,7.6475,130.76,130.75,100.0]
[1719161758962,19.1146,130.79,130.72,0.17]
[1719161758963,38.2309,130.79,130.72,100.0]
[1719161759156,7.6493,130.73,130.72,100.0]
[1719161760469,20.0,130.73,130.72,100.0]
[1719161760878,20.0,130.73,130.72,100.17]
[1719161761450,20.0,130.73,130.72,146.1]
[1719161761686,19.1129,130.81,130.74,145.93]
[1719161761869,7.6481,130.75,130.74,145.93]
[1719161762174,7.6477,130.76,130.74,145.93]
[1719161762467,7.6478,130.76,130.74,145.93]
[1719161762672,7.647,130.77,130.74,145.93]
[1719161762885,7.6481,130.75,130.74,145.93]
[1719161763564,7.6479,130.76,130.74,145.93]
[1719161763756,7.6493,130.73,130.72,145.93]
[1719161764081,27.6493,130.73,130.72,145.93]
[1719161764373,27.6493,130.73,130.69,106.6652]
[1719161764374,20.0,130.73,130.69,106.6652]
[1719161764551,7.6501,130.72,130.69,106.6652]
[1719161764746,20.0,130.71,130.69,152.5952]
[1719161765175,7.6495,130.73,130.71,100.0]
[1719161765477,20.0,130.72,130.71,100.0]
[1719161765653,27.6499,130.72,130.71,100.0]
[1719161765849,20.0,130.72,130.71,145.93]
[1719161766082,20.0,130.72,130.69,106.6652]
[1719161766277,38.2308,130.79,130.69,106.6652]
[1719161766585,7.6511,130.7,130.69,100.0]
[1719161766874,27.6511,130.7,130.68,45.93]
[1719161767057,38.2415,130.75,130.65,152.5952]
[1719161767266,7.6534,130.66,130.65,152.5952]
[1719161767568,7.6534,130.66,130.65,145.93]
[1719161767955,27.6534,130.66,130.65,145.93]
[1719161768681,20.0,130.66,130.65,145.93]
[1719161769046,27.6534,130.66,130.65,145.93]
[1719161769545,7.6512,130.7,130.69,100.0]
[1719161769749,27.6512,130.7,130.69,100.0]
[1719161770174,27.6512,130.7,130.67,145.93]
[1719161770175,7.6521,130.69,130.67,245.93]
[1719161770346,7.6522,130.68,130.67,145.93]
[1719161770548,7.6522,130.68,130.65,100.0]
[1719161770549,20.0,130.7,130.65,145.93]
[1719161770753,7.6509,130.71,130.67,100.0]
[1719161770954,7.6499,130.72,130.69,145.93]
[1719161771152,7.6506,130.71,130.69,145.93]
[1719161771565,7.6501,130.72,130.71,100.0]
[1719161771775,7.6501,130.72,130.69,145.93]
[1719161772074,15.1868,130.76,130.67,145.93]
[1719161772258,7.6528,130.67,130.66,45.93]
[1719161772656,7.6524,130.68,130.66,45.93]
[1719161773067,7.6528,130.67,130.66,45.93]
[1719161773578,27.6528,130.67,130.66,45.93]
[1719161774083,20.0,130.67,130.66,45.93]
[1719161774268,20.0,130.67,130.66,145.93]
[1719161774468,20.0,130.67,130.66,45.93]
[1719161774668,20.0,130.67,130.66,146.1]
[1719161774881,20.0,130.67,130.66,146.27]
[1719161775477,38.2412,130.75,130.68,245.93]
[1719161775780,7.6505,130.71,130.7,145.93]
[1719161776286,15.1868,130.76,130.68,145.93]
[1719161776484,15.1868,130.76,130.66,100.0]
[1719161776696,7.6528,130.67,130.66,100.0]
[1719161776859,15.1868,130.76,130.66,100.0]
[1719161776860,7.6524,130.68,130.66,100.0]
[1719161777258,19.1275,130.71,130.66,100.0]
[1719161777259,7.6518,130.69,130.66,145.93]
[1719161777687,27.6523,130.68,130.66,145.93]
[1719161777892,7.6528,130.67,130.66,145.93]
[1719161778659,7.6525,130.68,130.66,145.93]
[1719161779282,19.125,130.72,130.69,100.0]
[1719161779690,27.6507,130.71,130.69,145.93]
[1719161779868,7.6511,130.7,130.69,145.93]
[1719161780187,20.0,130.71,130.7,145.93]
[1719161780398,7.6503,130.72,130.71,145.93]
[1719161780889,20.0,130.72,130.71,145.93]
[1719161781095,19.1163,130.78,130.74,100.0]
[1719161781272,7.6483,130.75,130.74,100.0]
[1719161781890,20.0,130.75,130.74,100.0]
[1719161782097,27.6481,130.75,130.74,100.0]
[1719161784292,20.0,130.75,130.71,145.93]
[1719161784585,7.6498,130.73,130.72,0.17]
[1719161786283,7.6499,130.72,130.71,145.93]
[1719161786472,7.6495,130.73,130.71,145.93]
[1719161786783,7.6499,130.72,130.71,145.93]
[1719161787015,7.6495,130.73,130.71,145.93]
[1719161787174,19.1191,130.76,130.71,145.93]
[1719161787365,7.6499,130.72,130.71,145.93]
[1719161787876,20.0,130.75,130.73,100.0]
[1719161788071,27.6484,130.75,130.71,100.0]
[1719161788291,7.6499,130.72,130.71,145.93]
[1719161788494,7.6495,130.73,130.71,145.93]
[1719161789405,7.6488,130.74,130.73,100.0]
[1719161789898,27.6488,130.74,130.73,100.0]
[1719161790680,20.0,130.74,130.73,145.93]
[1719161792092,27.6487,130.74,130.73,145.93]
[1719161794586,27.6487,130.74,130.73,100.0]
[1719161795388,27.6487,130.74,130.73,145.93]
[1719161795898,20.0,130.74,130.73,145.93]
[1719161796897,27.6487,130.74,130.73,145.93]
[1719161797082,46.7706,130.74,130.73,145.93]
[1719161797283,7.6499,130.72,130.71,145.93]
[1719161798180,7.6496,130.73,130.71,145.93]
[1719161798781,27.649,130.74,130.71,245.93]
[1719161798999,20.0,130.74,130.73,145.93]
[1719161799796,27.6487,130.74,130.73,145.93]
[1719161803915,20.0,130.74,130.73,145.93]
[1719161804506,20.0,130.74,130.73,146.1]
[1719161805093,7.6475,130.77,130.73,246.1]
[1719161805298,7.6474,130.77,130.75,100.0]
[1719161805604,27.6475,130.76,130.75,100.0]
[1719161805782,20.0,130.76,130.75,145.93]
[1719161806192,27.6475,130.76,130.75,245.93]
[1719161806793,35.51733949,130.76,130.75,245.93]
[1719161807610,35.51733949,130.76,130.75,145.93]
[1719161809716,7.86983949,130.76,130.75,245.93]
[1719161809913,7.6449,130.81,130.8,100.0]
[1719161810293,20.0,130.81,130.8,245.93]
[1719161810512,7.86616053,130.85,130.8,246.1]
[1719161810721,20.0,130.84,130.8,246.1]
[1719161810907,7.86616053,130.85,130.8,246.1]